Workbook

Sheet 化学工艺系-学硕
A1: 化学工程与环境学院2025级全日制硕士研究生复试成绩汇总暨拟录取名单统计表
A2: 复试小组名称： 化学工艺系
A3: 序号 | B3: 考生编号 | C3: 姓名 | D3: 面试专业成绩 | E3: 面试英语成绩 | F3: 复试成绩 | G3: 初试成绩 | H3: 总成绩 | I3: 是否拟录取 | J3: 拟录取专业 | K3: 考生来源(推免/统考)
A4: 1 | B4: 114145161037053 | C4: 方舟 | D4: 83.11 | E4: 86.80 | F4: =D4*0.7+E4*0.3 -> 84.22 | G4: 387 | H4: =F4*0.4+G4/5*0.6 -> 80.13 | I4: 是 | J4: 化学工程与技术 | K4: 统考
A5: 2 | B5: 114145113463027 | C5: 孟丽媛 | D5: 82.56 | E5: 85.00 | F5: =D5*0.7+E5*0.3 -> 83.29 | G5: 379 | H5: =F5*0.4+G5/5*0.6 -> 78.80 | I5: 是 | J5: 化学工程与技术 | K5: 统考
A6: 3 | B6: 114145134064380 | C6: 曹爱琳 | D6: 82.56 | E6: 84.40 | F6: =D6*0.7+E6*0.3 -> 83.11 | G6: 379 | H6: =F6*0.4+G6/5*0.6 -> 78.72 | I6: 是 | J6: 化学工程与技术 | K6: 统考
A7: 4 | B7: 114145121103578 | C7: 史航宇 | D7: 81.00 | E7: 87.60 | F7: 82.98 | G7: 375 | H7: 78.19 | I7: 是 | J7: 化学工程与技术 | K7: 统考
A8: 5 | B8: 114145136134653 | C8: 杜泳森 | D8: 79.11 | E8: 81.20 | F8: 79.74 | G8: 383 | H8: 77.86 | I8: 是 | J8: 化学工程与技术 | K8: 统考
A9: 6 | B9: 114145137075167 | C9: 张建鑫 | D9: 82.78 | E9: 82.40 | F9: 82.66 | G9: 354 | H9: 75.55 | I9: 是 | J9: 化学工程与技术 | K9: 统考
A10: 7 | B10: 114145111641486 | C10: 周仁杰 | D10: 79.78 | E10: 56.20 | F10: 72.70 | G10: 383 | H10: 75.04 | I10: 是 | J10: 化学工程与技术 | K10: 统考
A11: 8 | B11: 114145141165746 | C11: 杨穗穗 | D11: 82.44 | E11: 82.20 | F11: 82.37 | G11: 349 | H11: 74.83 | I11: 是 | J11: 化学工程与技术 | K11: 统考
A12: 9 | B12: 114145121103583 | C12: 王靖洲 | D12: 80.44 | E12: 82.20 | F12: 80.97 | G12: 351 | H12: 74.51 | I12: 是 | J12: 化学工程与技术 | K12: 统考
A13: 10 | B13: 114145112332296 | C13: 程秋玮 | D13: 79.56 | E13: 81.80 | F13: 80.23 | G13: 350 | H13: 74.09 | I13: 是 | J13: 化学工程与技术 | K13: 统考
A14: 11 | B14: 114145111641762 | C14: 范静琳 | D14: 78.56 | E14: 82.80 | F14: 79.83 | G14: 351 | H14: 74.05 | I14: 是 | J14: 化学工程与技术 | K14: 统考
A15: 12 | B15: 114145141345877 | C15: 田淑平 | D15: 84.78 | E15: 79.80 | F15: 83.28 | G15: 338 | H15: 73.87 | I15: 是 | J15: 化学工程与技术 | K15: 统考
A16: 13 | B16: 114145142116083 | C16: 平子慧 | D16: 82.11 | E16: 81.00 | F16: 81.78 | G16: 343 | H16: 73.87 | I16: 是 | J16: 化学工程与技术 | K16: 统考
A17: 14 | B17: 114145161447220 | C17: 王昭青 | D17: 89.22 | E17: 84.20 | F17: 87.72 | G17: 319 | H17: 73.37 | I17: 是 | J17: 化学工程与技术 | K17: 统考
A18: 15 | B18: 114145113523116 | C18: 苗立佳 | D18: 84.56 | E18: 88.00 | F18: 85.59 | G18: 326 | H18: 73.36 | I18: 是 | J18: 化学工程与技术 | K18: 统考
A19: 16 | B19: 114145123103934 | C19: 王志鹏 | D19: 82.22 | E19: 87.80 | F19: 83.90 | G19: 331 | H19: 73.28 | I19: 是 | J19: 化学工程与技术 | K19: 统考
A20: 17 | B20: 114145151086616 | C20: 税星月 | D20: 77.56 | E20: 82.80 | F20: 79.13 | G20: 346 | H20: 73.17 | I20: 是 | J20: 化学工程与技术 | K20: 统考
A21: 18 | B21: 114145111641860 | C21: 李奇 | D21: 82.56 | E21: 83.00 | F21: 82.69 | G21: 328 | H21: 72.44 | I21: 是 | J21: 化学工程与技术 | K21: 统考
A22: 19 | B22: 114145111641848 | C22: 王鹏琪 | D22: 82.11 | E22: 81.00 | F22: 81.78 | G22: 330 | H22: 72.31 | I22: 是 | J22: 化学工程与技术 | K22: 统考
A23: 20 | B23: 114145111641305 | C23: 宝佳庆 | D23: 83.89 | E23: 82.80 | F23: 83.56 | G23: 324 | H23: 72.30 | I23: 是 | J23: 化学工程与技术 | K23: 统考
A24: 21 | B24: 114145141325843 | C24: 周金橡 | D24: 77.56 | E24: 78.20 | F24: 77.75 | G24: 341 | H24: 72.02 | I24: 是 | J24: 化学工程与技术 | K24: 统考
A25: 22 | B25: 114145151146707 | C25: 胡筱雅 | D25: 77.89 | E25: 79.40 | F25: 78.34 | G25: 336 | H25: 71.66 | I25: 是 | J25: 化学工程与技术 | K25: 统考
A26: 23 | B26: 114145137135356 | C26: 李庆 | D26: 82.67 | E26: 85.20 | F26: 83.43 | G26: 319 | H26: 71.65 | I26: 是 | J26: 化学工程与技术 | K26: 统考
A27: 24 | B27: 114145113513101 | C27: 杨亚航 | D27: 78.11 | E27: 75.00 | F27: 77.18 | G27: 339 | H27: 71.55 | I27: 是 | J27: 化学工程与技术 | K27: 统考
A28: 25 | B28: 114145141535948 | C28: 冀豪然 | D28: 75.00 | E28: 82.00 | F28: 77.10 | G28: 336 | H28: 71.16 | I28: 是 | J28: 化学工程与技术 | K28: 统考
A29: 26 | B29: 114145150136512 | C29: 王蕊 | D29: 78.00 | E29: 73.60 | F29: 76.68 | G29: 336 | H29: 70.99 | I29: 是 | J29: 化学工程与技术 | K29: 统考
A30: 27 | B30: 114145141235811 | C30: 韩梦娇 | D30: 79.11 | E30: 87.00 | F30: 81.48 | G30: 320 | H30: 70.99 | I30: 是 | J30: 化学工程与技术 | K30: 统考
A31: 28 | B31: 114145132114104 | C31: 黄磊 | D31: 81.00 | E31: 73.60 | F31: 78.78 | G31: 328 | H31: 70.87 | I31: 是 | J31: 化学工程与技术 | K31: 统考
A32: 29 | B32: 114145161037062 | C32: 俞佳琪 | D32: 75.11 | E32: 88.20 | F32: 79.04 | G32: 326 | H32: 70.74 | I32: 是 | J32: 化学工程与技术 | K32: 统考
A33: 30 | B33: 114145111641839 | C33: 朱廷嘉 | D33: 88.89 | E33: 87.60 | F33: 88.50 | G33: 294 | H33: 70.68 | I33: 是 | J33: 化学工程与技术 | K33: 统考
A34: 31 | B34: 114145141125683 | C34: 应晨阳 | D34: 77.44 | E34: 78.20 | F34: 77.67 | G34: 328 | H34: 70.43 | I34: 是 | J34: 化学工程与技术 | K34: 统考
A35: 32 | B35: 114145145096462 | C35: 邢欣茜 | D35: 82.11 | E35: 88.40 | F35: 84.00 | G35: 305 | H35: 70.20 | I35: 是 | J35: 化学工程与技术 | K35: 统考
A36: 33 | B36: 114145137065094 | C36: 赵子玉 | D36: 74.00 | E36: 90.40 | F36: 78.92 | G36: 321 | H36: 70.09 | I36: 是 | J36: 化学工程与技术 | K36: 统考
A37: 34 | B37: 114145114053172 | C37: 冯旭旺 | D37: 76.44 | E37: 80.40 | F37: 77.63 | G37: 325 | H37: 70.05 | I37: 是 | J37: 化学工程与技术 | K37: 统考
A38: 35 | B38: 114145141175764 | C38: 徐一帆 | D38: 82.89 | E38: 82.80 | F38: 82.86 | G38: 305 | H38: 69.74 | I38: 是 | J38: 化学工程与技术 | K38: 统考
A39: 36 | B39: 114145121103587 | C39: 王奕梦 | D39: 80.22 | E39: 78.20 | F39: 79.62 | G39: 315 | H39: 69.65 | I39: 是 | J39: 化学工程与技术 | K39: 统考
A40: 37 | B40: 114145137014756 | C40: 郑晓丽 | D40: 79.89 | E40: 86.20 | F40: 81.78 | G40: 307 | H40: 69.55 | I40: 是 | J40: 化学工程与技术 | K40: 统考
A41: 38 | B41: 114145132164171 | C41: 李炎翼 | D41: 84.11 | E41: 66.20 | F41: 78.74 | G41: 317 | H41: 69.54 | I41: 是 | J41: 化学工程与技术 | K41: 统考
A42: 39 | B42: 114145137155464 | C42: 张泽宇 | D42: 78.44 | E42: 76.40 | F42: 77.83 | G42: 320 | H42: 69.53 | I42: 是 | J42: 化学工程与技术 | K42: 统考
A43: 40 | B43: 114145137135359 | C43: 谢雨婷 | D43: 81.11 | E43: 75.60 | F43: 79.46 | G43: 311 | H43: 69.10 | I43: 是 | J43: 化学工程与技术 | K43: 统考
A44: 41 | B44: 114145111641258 | C44: 霍子云 | D44: 73.44 | E44: 79.00 | F44: 75.11 | G44: 325 | H44: 69.04 | I44: 是 | J44: 化学工程与技术 | K44: 统考
A45: 42 | B45: 114145141155728 | C45: 赵一鸣 | D45: 70.56 | E45: 76.60 | F45: 72.37 | G45: 334 | H45: 69.03 | I45: 是 | J45: 化学工程与技术 | K45: 统考
A46: 43 | B46: 114145151146710 | C46: 兰心唯 | D46: 76.78 | E46: 76.20 | F46: 76.60 | G46: 316 | H46: 68.56 | I46: 是 | J46: 化学工程与技术 | K46: 统考
A47: 44 | B47: 114145137014754 | C47: 张梦琳 | D47: 80.44 | E47: 86.60 | F47: 82.29 | G47: 296 | H47: 68.44 | I47: 是 | J47: 化学工程与技术 | K47: 统考
A48: 45 | B48: 114145137034976 | C48: 张万凯 | D48: 83.89 | E48: 81.60 | F48: 83.20 | G48: 291 | H48: 68.20 | I48: 是 | J48: 化学工程与技术 | K48: 统考
A49: 46 | B49: 114145112032214 | C49: 黄惠 | D49: 77.11 | E49: 77.60 | F49: 77.26 | G49: 310 | H49: 68.10 | I49: 是 | J49: 化学工程与技术 | K49: 统考
A50: 47 | B50: 114145111641614 | C50: 颜伊宁 | D50: 77.67 | E50: 81.80 | F50: 78.91 | G50: 304 | H50: 68.04 | I50: 是 | J50: 化学工程与技术 | K50: 统考
A51: 48 | B51: 114145151106660 | C51: 钱宝香 | D51: 75.11 | E51: 79.20 | F51: 76.34 | G51: 312 | H51: 67.98 | I51: 是 | J51: 化学工程与技术 | K51: 统考
A52: 49 | B52: 114145164047381 | C52: 徐浩宇 | D52: 78.78 | E52: 78.60 | F52: 78.72 | G52: 302 | H52: 67.73 | I52: 是 | J52: 化学工程与技术 | K52: 统考
A53: 50 | B53: 114145113463029 | C53: 史梦菲 | D53: 75.56 | E53: 86.80 | F53: 78.93 | G53: 300 | H53: 67.57 | I53: 是 | J53: 化学工程与技术 | K53: 统考
A54: 51 | B54: 114145113102686 | C54: 王济文 | D54: 73.89 | E54: 78.00 | F54: 75.12 | G54: 312 | H54: 67.49 | I54: 是 | J54: 化学工程与技术 | K54: 统考
A55: 52 | B55: 114145132204203 | C55: 张瑞倩 | D55: 69.33 | E55: 84.60 | F55: 73.91 | G55: 316 | H55: 67.49 | I55: 是 | J55: 化学工程与技术 | K55: 统考
A56: 53 | B56: 114145137075160 | C56: 卢传峥 | D56: 80.56 | E56: 69.40 | F56: 77.21 | G56: 305 | H56: 67.48 | I56: 是 | J56: 化学工程与技术 | K56: 统考
A57: 54 | B57: 114145161437206 | C57: 王昕瑶 | D57: 83.22 | E57: 78.00 | F57: 81.66 | G57: 290 | H57: 67.46 | I57: 候补 | K57: 统考
A58: 55 | B58: 114145132194198 | C58: 王志远 | D58: 77.22 | E58: 86.20 | F58: 79.92 | G58: 295 | H58: 67.37 | I58: 候补 | K58: 统考
A59: 56 | B59: 114145141465924 | C59: 逯珂珂 | D59: 74.44 | E59: 85.00 | F59: 77.61 | G59: 302 | H59: 67.28 | I59: 否 | K59: 统考
A60: 57 | B60: 114145137135360 | C60: 张洁 | D60: 77.22 | E60: 88.20 | F60: 80.52 | G60: 290 | H60: 67.01 | I60: 否 | K60: 统考
A61: 58 | B61: 114145133114326 | C61: 叶树奔 | D61: 72.00 | E61: 81.80 | F61: 74.94 | G61: 307 | H61: 66.82 | I61: 否 | K61: 统考
A62: 59 | B62: 114145113523120 | C62: 张玮洁 | D62: 76.22 | E62: 71.40 | F62: 74.78 | G62: 299 | H62: 65.79 | I62: 否 | K62: 统考
A63: 60 | B63: 114145113092644 | C63: 刘畅 | D63: 74.33 | E63: 84.40 | F63: 77.35 | G63: 290 | H63: 65.74 | I63: 否 | K63: 统考
A64: 61 | B64: 114145113302875 | C64: 梁钰鑫 | D64: 73.67 | E64: 83.80 | F64: 76.71 | G64: 290 | H64: 65.48 | I64: 否 | K64: 统考
A65: 62 | B65: 114145141135691 | C65: 刘通 | D65: 72.78 | E65: 70.60 | F65: 72.12 | G65: 303 | H65: 65.21 | I65: 否 | K65: 统考
A66: 63 | B66: 114145134604480 | C66: 朱雲杰 | D66: 68.33 | E66: 71.80 | F66: 69.37 | G66: 296 | H66: 63.27 | I66: 否 | K66: 统考
A67: 64 | B67: 114145151486799 | C67: 刘威 | D67: 63.33 | E67: 77.20 | F67: 67.49 | G67: 299 | H67: 62.88 | I67: 否 | K67: 统考
A68: 备注：如果排名靠前的考生放弃或失去拟录取资格，按照候补名单的顺序依次递补。

Sheet 化学工艺系-专硕
A1: 化学工程与环境学院2025级全日制专业学位硕士研究生复试成绩汇总暨拟录取名单统计表
A2: 复试小组名称：化学工艺系
A3: 序号 | B3: 考生编号 | C3: 姓名 | D3: 面试专业成绩 | E3: 面试英语成绩 | F3: 复试成绩 | G3: 初试成绩 | H3: 总成绩 | I3: 是否拟录取 | J3: 拟录取专业 | K3: 考生来源(推免/统考)
A4: 1 | B4: 114145137034968 | C4: 王怀贺 | D4: 84.71 | E4: 90.86 | F4: =D4*0.7+E4*0.3 -> 86.56 | G4: 397 | H4: =F4*0.4+G4/5*0.6 -> 82.26 | I4: 是 | J4: 化学工程 | K4: 统考
A5: 2 | B5: 114145145096463 | C5: 张阳 | D5: 82.43 | E5: 80.00 | F5: =D5*0.7+E5*0.3 -> 81.70 | G5: 388 | H5: =F5*0.4+G5/5*0.6 -> 79.24 | I5: 是 | J5: 化学工程 | K5: 统考
A6: 3 | B6: 114145112342314 | C6: 刘傲 | D6: 81.57 | E6: 78.00 | F6: =D6*0.7+E6*0.3 -> 80.50 | G6: 366 | H6: 76.12 | I6: 是 | J6: 化学工程 | K6: 统考
A7: 4 | B7: 114145111641521 | C7: 李晋 | D7: 89.57 | E7: 82.43 | F7: 87.43 | G7: 341 | H7: 75.89 | I7: 是 | J7: 化学工程 | K7: 统考
A8: 5 | B8: 114145137034972 | C8: 夏志飞 | D8: 85.57 | E8: 88.57 | F8: 86.47 | G8: 338 | H8: 75.15 | I8: 是 | J8: 化学工程 | K8: 统考
A9: 6 | B9: 114145113092647 | C9: 王禹 | D9: 81.71 | E9: 77.14 | F9: 80.34 | G9: 356 | H9: 74.86 | I9: 是 | J9: 化学工程 | K9: 统考
A10: 7 | B10: 114145113302865 | C10: 崔依硕 | D10: 81.86 | E10: 82.00 | F10: 81.90 | G10: 346 | H10: 74.28 | I10: 是 | J10: 化学工程 | K10: 统考
A11: 8 | B11: 114145137065096 | C11: 窦赵茹 | D11: 72.57 | E11: 81.14 | F11: 75.14 | G11: 364 | H11: 73.74 | I11: 是 | J11: 化学工程 | K11: 统考
A12: 9 | B12: 114145113493088 | C12: 刘涛 | D12: 85.14 | E12: 79.14 | F12: 83.34 | G12: 335 | H12: 73.54 | I12: 是 | J12: 化学工程 | K12: 统考
A13: 10 | B13: 114145137175519 | C13: 刘金越 | D13: 78.00 | E13: 77.29 | F13: 77.79 | G13: 351 | H13: 73.23 | I13: 是 | J13: 化学工程 | K13: 统考
A14: 11 | B14: 114145113523110 | C14: 胡熙琳 | D14: 82.43 | E14: 76.86 | F14: 80.76 | G14: 340 | H14: 73.10 | I14: 是 | J14: 化学工程 | K14: 统考
A15: 12 | B15: 114145111641778 | C15: 李沫若 | D15: 83.14 | E15: 81.71 | F15: 82.71 | G15: 329 | H15: 72.57 | I15: 是 | J15: 化学工程 | K15: 统考
A16: 13 | B16: 114145137024849 | C16: 高鑫宇 | D16: 81.00 | E16: 82.14 | F16: 81.34 | G16: 333 | H16: 72.50 | I16: 是 | J16: 化学工程 | K16: 统考
A17: 14 | B17: 114145111641365 | C17: 甄学敬 | D17: 86.14 | E17: 74.29 | F17: 82.59 | G17: 328 | H17: 72.39 | I17: 是 | J17: 化学工程 | K17: 统考
A18: 15 | B18: 114145141405910 | C18: 徐文静 | D18: 79.43 | E18: 83.43 | F18: 80.63 | G18: 333 | H18: 72.21 | I18: 是 | J18: 化学工程 | K18: 统考
A19: 16 | B19: 114145161037065 | C19: 朱佳宝 | D19: 84.86 | E19: 79.43 | F19: 83.23 | G19: 324 | H19: 72.17 | I19: 是 | J19: 化学工程 | K19: 统考
A20: 17 | B20: 114145137034973 | C20: 徐兴彬 | D20: 84.43 | E20: 83.57 | F20: 84.17 | G20: 319 | H20: 71.95 | I20: 是 | J20: 化学工程 | K20: 统考
A21: 18 | B21: 114145137095284 | C21: 张迪 | D21: 74.00 | E21: 77.43 | F21: 75.03 | G21: 349 | H21: 71.89 | I21: 是 | J21: 化学工程 | K21: 统考
A22: 19 | B22: 114145113523117 | C22: 王丽娜 | D22: 76.00 | E22: 75.71 | F22: 75.91 | G22: 345 | H22: 71.77 | I22: 是 | J22: 化学工程 | K22: 统考
A23: 20 | B23: 114145112342316 | C23: 延小彤 | D23: 88.43 | E23: 86.00 | F23: 87.70 | G23: 305 | H23: 71.68 | I23: 是 | J23: 化学工程 | K23: 统考
A24: 21 | B24: 114145114193314 | C24: 王婧 | D24: 78.00 | E24: 70.71 | F24: 75.81 | G24: 342 | H24: 71.37 | I24: 是 | J24: 化学工程 | K24: 统考
A25: 22 | B25: 114145141045585 | C25: 郭强 | D25: 85.00 | E25: 63.86 | F25: 78.66 | G25: 332 | H25: 71.30 | I25: 是 | J25: 化学工程 | K25: 统考
A26: 23 | B26: 114145113302867 | C26: 谷若冰 | D26: 77.14 | E26: 72.57 | F26: 75.77 | G26: 340 | H26: 71.11 | I26: 是 | J26: 化学工程 | K26: 统考
A27: 24 | B27: 114145114073200 | C27: 杨康帅 | D27: 75.57 | E27: 77.29 | F27: 76.09 | G27: 338 | H27: 70.99 | I27: 是 | J27: 化学工程 | K27: 统考
A28: 25 | B28: 114145113523121 | C28: 赵文雯 | D28: 76.43 | E28: 81.71 | F28: 78.01 | G28: 330 | H28: 70.81 | I28: 是 | J28: 化学工程 | K28: 统考
A29: 26 | B29: 114145113302889 | C29: 杨艺雪 | D29: 81.14 | E29: 79.71 | F29: 80.71 | G29: 321 | H29: 70.81 | I29: 是 | J29: 化学工程 | K29: 统考
A30: 27 | B30: 114145137095275 | C30: 陈奕璇 | D30: 74.43 | E30: 74.71 | F30: 74.51 | G30: 341 | H30: 70.73 | I30: 是 | J30: 化学工程 | K30: 统考
A31: 28 | B31: 114145141545954 | C31: 李怡丽 | D31: 75.57 | E31: 81.00 | F31: 77.20 | G31: 332 | H31: 70.72 | I31: 是 | J31: 化学工程 | K31: 统考
A32: 29 | B32: 114145141335864 | C32: 黄春艳 | D32: 72.86 | E32: 81.86 | F32: 75.56 | G32: 336 | H32: 70.54 | I32: 是 | J32: 化学工程 | K32: 统考
A33: 30 | B33: 114145137175524 | C33: 徐安昌 | D33: 78.86 | E33: 76.71 | F33: 78.21 | G33: 323 | H33: 70.05 | I33: 是 | J33: 化学工程 | K33: 统考
A34: 31 | B34: 114145113302872 | C34: 靳瑞莹 | D34: 83.29 | E34: 82.57 | F34: 83.07 | G34: 306 | H34: 69.95 | I34: 是 | J34: 化学工程 | K34: 统考
A35: 32 | B35: 114145165037463 | C35: 马文惠 | D35: 80.14 | E35: 70.00 | F35: 77.10 | G35: 325 | H35: 69.84 | I35: 是 | J35: 化学工程 | K35: 统考
A36: 33 | B36: 114145137014742 | C36: 陈静一 | D36: 83.71 | E36: 78.57 | F36: 82.17 | G36: 308 | H36: 69.83 | I36: 是 | J36: 化学工程 | K36: 统考
A37: 34 | B37: 114145137065090 | C37: 尉向国 | D37: 69.71 | E37: 72.43 | F37: 70.53 | G37: 343 | H37: 69.37 | I37: 是 | J37: 化学工程 | K37: 统考
A38: 35 | B38: 114145113302883 | C38: 王浩月 | D38: 77.57 | E38: 78.57 | F38: 77.87 | G38: 318 | H38: 69.31 | I38: 是 | J38: 化学工程 | K38: 统考
A39: 36 | B39: 114145142376209 | C39: 王梦娜 | D39: 79.43 | E39: 81.43 | F39: 80.03 | G39: 310 | H39: 69.21 | I39: 候补 | K39: 统考
A40: 37 | B40: 114145144076414 | C40: 雷亦阳 | D40: 79.57 | E40: 76.57 | F40: 78.67 | G40: 314 | H40: 69.15 | I40: 候补 | K40: 统考
A41: 38 | B41: 114145137065088 | C41: 万欣荣 | D41: 77.71 | E41: 78.29 | F41: 77.89 | G41: 311 | H41: 68.47 | I41: 否 | K41: 统考
A42: 39 | B42: 114145111642046 | C42: 姬方剑 | D42: 77.86 | E42: 83.00 | F42: 79.40 | G42: 290 | H42: 66.56 | I42: 否 | K42: 统考
A43: 40 | B43: 114145137034960 | C43: 陈雅琪 | D43: 72.57 | E43: 79.00 | F43: 74.50 | G43: 302 | H43: 66.04 | I43: 否 | K43: 统考
A44: 41 | B44: 114145143106269 | C44: 李芷晴 | D44: 71.14 | E44: 79.43 | F44: 73.63 | G44: 301 | H44: 65.57 | I44: 否 | K44: 统考
A45: 42 | B45: 114145113092642 | C45: 李帆 | D45: 68.00 | E45: 63.14 | F45: 66.54 | G45: 313 | H45: 64.18 | I45: 否 | K45: 统考
A46: 43 | B46: 114145146036485 | C46: 苏开瑞 | D46: 70.71 | E46: 68.86 | F46: 70.16 | G46: 299 | H46: 63.94 | I46: 否 | K46: 统考
A47: 备注：如果排名靠前的考生放弃或失去拟录取资格，按照候补名单的顺序依次递补。

Sheet 化学工程系-学硕
A1: 化学工程与环境学院2025级全日制硕士研究生复试成绩汇总暨拟录取名单统计表
A2: 复试小组名称： 化学工程系
A3: 序号 | B3: 考生编号 | C3: 姓名 | D3: 面试专业成绩 | E3: 面试英语成绩 | F3: 复试成绩 | G3: 初试成绩 | H3: 总成绩 | I3: 是否拟录取 | J3: 拟录取专业 | K3: 考生来源(推免/统考)
A4: 1 | B4: 114145111641278 | C4: 张晓生 | D4: 87.25 | E4: 77.80 | F4: =D4*0.7+E4*0.3 -> 84.42 | G4: 363 | H4: =G4/5*0.6+F4*0.4 -> 77.33 | I4: 是 | J4: 化学工程与技术 | K4: 统考
A5: 2 | B5: 114145111641747 | C5: 魏博轩 | D5: 83.38 | E5: 78.40 | F5: =D5*0.7+E5*0.3 -> 81.88 | G5: 368 | H5: =G5/5*0.6+F5*0.4 -> 76.91 | I5: 是 | J5: 化学工程与技术 | K5: 统考
A6: 3 | B6: 114145112342313 | C6: 郝新蕊 | D6: 83.38 | E6: 78.33 | F6: 81.86 | G6: 361 | H6: 76.07 | I6: 是 | J6: 化学工程与技术 | K6: 统考
A7: 4 | B7: 114145137014747 | C7: 刘佳正 | D7: 82.88 | E7: 80.17 | F7: 82.06 | G7: 350 | H7: 74.83 | I7: 是 | J7: 化学工程与技术 | K7: 统考
A8: 5 | B8: 114145113463031 | C8: 王圣飞 | D8: 80.75 | E8: 74.83 | F8: 78.98 | G8: 360 | H8: 74.79 | I8: 是 | J8: 化学工程与技术 | K8: 统考
A9: 6 | B9: 114145161037059 | C9: 聂航凯 | D9: 83.50 | E9: 77.50 | F9: 81.70 | G9: 350 | H9: 74.68 | I9: 是 | J9: 化学工程与技术 | K9: 统考
A10: 7 | B10: 114145137145398 | C10: 吕盈盈 | D10: 81.75 | E10: 77.83 | F10: 80.58 | G10: 353 | H10: 74.59 | I10: 是 | J10: 化学工程与技术 | K10: 统考
A11: 8 | B11: 114145112332297 | C11: 丁坤 | D11: 81.63 | E11: 81.33 | F11: 81.54 | G11: 344 | H11: 73.90 | I11: 是 | J11: 化学工程与技术 | K11: 统考
A12: 9 | B12: 114145165348037 | C12: 刘思源 | D12: 84.38 | E12: 88.83 | F12: 85.71 | G12: 329 | H12: 73.77 | I12: 是 | J12: 化学工程与技术 | K12: 统考
A13: 10 | B13: 114145165348060 | C13: 周文建 | D13: 83.38 | E13: 81.67 | F13: 82.86 | G13: 334 | H13: 73.23 | I13: 是 | J13: 化学工程与技术 | K13: 统考
A14: 11 | B14: 114145141335863 | C14: 陈雅萱 | D14: 82.63 | E14: 72.83 | F14: 79.69 | G14: 339 | H14: 72.56 | I14: 是 | J14: 化学工程与技术 | K14: 统考
A15: 12 | B15: 114145142286154 | C15: 张扬洋 | D15: 82.13 | E15: 86.33 | F15: 83.39 | G15: 325 | H15: 72.36 | I15: 是 | J15: 化学工程与技术 | K15: 统考
A16: 13 | B16: 114145137095283 | C16: 薛舒畅 | D16: 83.88 | E16: 77.83 | F16: 82.06 | G16: 327 | H16: 72.07 | I16: 是 | J16: 化学工程与技术 | K16: 统考
A17: 14 | B17: 114145113302868 | C17: 郭圣选 | D17: 82.25 | E17: 73.33 | F17: 79.58 | G17: 335 | H17: 72.03 | I17: 是 | J17: 化学工程与技术 | K17: 统考
A18: 15 | B18: 114145113182767 | C18: 闫雅聪 | D18: 80.75 | E18: 75.50 | F18: 79.18 | G18: 336 | H18: 71.99 | I18: 是 | J18: 化学工程与技术 | K18: 统考
A19: 16 | B19: 114145151106657 | C19: 贺湉 | D19: 83.50 | E19: 73.33 | F19: 80.45 | G19: 328 | H19: 71.54 | I19: 是 | J19: 化学工程与技术 | K19: 统考
A20: 17 | B20: 114145141305822 | C20: 李洋 | D20: 80.13 | E20: 70.33 | F20: 77.19 | G20: 337 | H20: 71.32 | I20: 是 | J20: 化学工程与技术 | K20: 统考
A21: 18 | B21: 114145137085229 | C21: 张小婷 | D21: 82.75 | E21: 77.33 | F21: 81.13 | G21: 323 | H21: 71.21 | I21: 是 | J21: 化学工程与技术 | K21: 统考
A22: 19 | B22: 114145137085220 | C22: 刘立颖 | D22: 82.25 | E22: 73.17 | F22: 79.53 | G22: 328 | H22: 71.17 | I22: 是 | J22: 化学工程与技术 | K22: 统考
A23: 20 | B23: 114145141515939 | C23: 刘翠 | D23: 84.38 | E23: 80.50 | F23: 83.21 | G23: 315 | H23: 71.09 | I23: 是 | J23: 化学工程与技术 | K23: 统考
A24: 21 | B24: 114145111641490 | C24: 董小娜 | D24: 84.38 | E24: 79.20 | F24: 82.82 | G24: 315 | H24: 70.93 | I24: 是 | J24: 化学工程与技术 | K24: 统考
A25: 22 | B25: 114145137075168 | C25: 张悦卉 | D25: 81.63 | E25: 72.50 | F25: 78.89 | G25: 327 | H25: 70.80 | I25: 是 | J25: 化学工程与技术 | K25: 统考
A26: 23 | B26: 114145137155455 | C26: 宋世羽 | D26: 82.63 | E26: 76.83 | F26: 80.89 | G26: 320 | H26: 70.76 | I26: 是 | J26: 化学工程与技术 | K26: 统考
A27: 24 | B27: 114145150126503 | C27: 范永鑫 | D27: 81.00 | E27: 72.60 | F27: 78.48 | G27: 328 | H27: 70.75 | I27: 是 | J27: 化学工程与技术 | K27: 统考
A28: 25 | B28: 114145113493090 | C28: 聂一涵 | D28: 81.13 | E28: 78.83 | F28: 80.44 | G28: 321 | H28: 70.70 | I28: 是 | J28: 化学工程与技术 | K28: 统考
A29: 26 | B29: 114145137075161 | C29: 鹿馨 | D29: 82.38 | E29: 77.50 | F29: 80.91 | G29: 319 | H29: 70.65 | I29: 是 | J29: 化学工程与技术 | K29: 统考
A30: 27 | B30: 114145114123251 | C30: 王碧林 | D30: 80.88 | E30: 82.50 | F30: 81.36 | G30: 316 | H30: 70.47 | I30: 是 | J30: 化学工程与技术 | K30: 统考
A31: 28 | B31: 114145141335865 | C31: 刘奕荣 | D31: 78.88 | E31: 74.50 | F31: 77.56 | G31: 327 | H31: 70.27 | I31: 是 | J31: 化学工程与技术 | K31: 统考
A32: 29 | B32: 114145111641841 | C32: 刘羲阳 | D32: 81.13 | E32: 75.00 | F32: 79.29 | G32: 321 | H32: 70.24 | I32: 是 | J32: 化学工程与技术 | K32: 统考
A33: 30 | B33: 114145141055609 | C33: 孙康佳 | D33: 81.88 | E33: 73.33 | F33: 79.31 | G33: 318 | H33: 69.89 | I33: 是 | J33: 化学工程与技术 | K33: 统考
A34: 31 | B34: 114145137155462 | C34: 于俊超 | D34: 81.88 | E34: 74.17 | F34: 79.56 | G34: 316 | H34: 69.75 | I34: 是 | J34: 化学工程与技术 | K34: 统考
A35: 32 | B35: 114145165348047 | C35: 韦锦洋 | D35: 84.38 | E35: 79.17 | F35: 82.81 | G35: 304 | H35: 69.61 | I35: 是 | J35: 化学工程与技术 | K35: 统考
A36: 33 | B36: 114145137065083 | C36: 崔连杰 | D36: 85.63 | E36: 74.33 | F36: 82.24 | G36: 304 | H36: 69.38 | I36: 是 | J36: 化学工程与技术 | K36: 统考
A37: 34 | B37: 114145137034975 | C37: 张梅芝 | D37: 79.38 | E37: 80.00 | F37: 79.56 | G37: 312 | H37: 69.27 | I37: 是 | J37: 化学工程与技术 | K37: 统考
A38: 35 | B38: 114145165348031 | C38: 季文杰 | D38: 85.00 | E38: 75.83 | F38: 82.25 | G38: 303 | H38: 69.26 | I38: 是 | J38: 化学工程与技术 | K38: 统考
A39: 36 | B39: 114145165348053 | C39: 姚俊 | D39: 83.25 | E39: 76.00 | F39: 81.08 | G39: 306 | H39: 69.15 | I39: 是 | J39: 化学工程与技术 | K39: 统考
A40: 37 | B40: 114145114073201 | C40: 张丽娜 | D40: 82.88 | E40: 76.33 | F40: 80.91 | G40: 305 | H40: 68.97 | I40: 是 | J40: 化学工程与技术 | K40: 统考
A41: 38 | B41: 114145111641916 | C41: 麦尔旦•买买提江 | D41: 81.63 | E41: 74.50 | F41: 79.49 | G41: 306 | H41: 68.52 | I41: 是 | J41: 化学工程与技术 | K41: 统考
A42: 39 | B42: 114145113463030 | C42: 王佳伟 | D42: 82.88 | E42: 74.67 | F42: 80.41 | G42: 295 | H42: 67.57 | I42: 是 | J42: 化学工程与技术 | K42: 统考
A43: 40 | B43: 114145113513100 | C43: 李钥娇 | D43: 62.00 | E43: 63.67 | F43: 62.50 | G43: 304 | H43: 61.48 | I43: 候补 | K43: 统考
A44: 41 | B44: 114145121103558 | C44: 柴康俊 | D44: 60.25 | E44: 63.00 | F44: 61.08 | G44: 307 | H44: 61.27 | I44: 候补 | K44: 统考
A45: 42 | B45: 114145161037055 | C45: 蒋韵馨 | D45: 61.38 | E45: 65.17 | F45: 62.51 | G45: 300 | H45: 61.01 | I45: 否 | K45: 统考
A46: 43 | B46: 114145115373466 | C46: 孔慧慧 | D46: 60.38 | E46: 60.50 | F46: 60.41 | G46: 306 | H46: 60.89 | I46: 否 | K46: 统考
A47: 44 | B47: 114145141465922 | C47: 王筱晴 | D47: 61.00 | E47: 60.20 | F47: 60.76 | G47: 298 | H47: 60.06 | I47: 否 | K47: 统考
A48: 45 | B48: 114145137075158 | C48: 冯亚茹 | D48: 61.00 | E48: 59.67 | F48: 60.60 | G48: 297 | H48: 59.88 | I48: 否 | K48: 统考
A49: 46 | B49: 114145111641764 | C49: 彭孝杨 | D49: 60.38 | E49: 59.33 | F49: 60.06 | G49: 295 | H49: 59.43 | I49: 否 | K49: 统考
A50: 备注：如果排名靠前的考生放弃或失去拟录取资格，按照候补名单的顺序依次递补。

Sheet 化学工程系-专硕
A1: 化学工程与环境学院2025级全日制专业学位硕士研究生复试成绩汇总暨拟录取名单统计表
A2: 复试小组名称： 化学工程系
A3: 序号 | B3: 考生编号 | C3: 姓名 | D3: 面试专业成绩 | E3: 面试英语成绩 | F3: 复试成绩 | G3: 初试成绩 | H3: 总成绩 | I3: 是否拟录取 | J3: 拟录取专业 | K3: 考生来源(推免/统考)
A4: 1 | B4: 114145137165495 | C4: 巩相磊 | D4: 83.71 | E4: 82.40 | F4: =E4*0.3+D4*0.7 -> 83.32 | G4: 378 | H4: =G4/5*0.6+F4*0.4 -> 78.69 | I4: 是 | J4: 化学工程 | K4: 统考
A5: 2 | B5: 114145132164172 | C5: 姚菲菲 | D5: 81.14 | E5: 79.60 | F5: =E5*0.3+D5*0.7 -> 80.68 | G5: 383 | H5: =G5/5*0.6+F5*0.4 -> 78.23 | I5: 是 | J5: 化学工程 | K5: 统考
A6: 3 | B6: 114145113302870 | C6: 贺明明 | D6: 85.14 | E6: 85.60 | F6: 85.28 | G6: 363 | H6: 77.67 | I6: 是 | J6: 化学工程 | K6: 统考
A7: 4 | B7: 114145137065081 | C7: 陈慧行 | D7: 81.86 | E7: 79.00 | F7: 81.00 | G7: 358 | H7: 75.36 | I7: 是 | J7: 化学工程 | K7: 统考
A8: 5 | B8: 114145113302887 | C8: 吴涵琪 | D8: 82.14 | E8: 84.20 | F8: 82.76 | G8: 346 | H8: 74.62 | I8: 是 | J8: 化学工程 | K8: 统考
A9: 6 | B9: 114145143096265 | C9: 杨强盛 | D9: 84.57 | E9: 75.80 | F9: 81.94 | G9: 346 | H9: 74.30 | I9: 是 | J9: 化学工程 | K9: 统考
A10: 7 | B10: 114145113523111 | C10: 解广彪 | D10: 80.00 | E10: 83.00 | F10: 80.90 | G10: 347 | H10: 74.00 | I10: 是 | J10: 化学工程 | K10: 统考
A11: 8 | B11: 114145121103589 | C11: 夏震亚 | D11: 85.71 | E11: 81.80 | F11: 84.54 | G11: 332 | H11: 73.66 | I11: 是 | J11: 化学工程 | K11: 统考
A12: 9 | B12: 114145113092650 | C12: 张天峰 | D12: 82.29 | E12: 82.60 | F12: 82.38 | G12: 332 | H12: 72.79 | I12: 是 | J12: 化学工程 | K12: 统考
A13: 10 | B13: 114145113463021 | C13: 冯葆卿 | D13: 81.00 | E13: 79.20 | F13: 80.46 | G13: 337 | H13: 72.62 | I13: 是 | J13: 化学工程 | K13: 统考
A14: 11 | B14: 114145111641719 | C14: 蒋德璋 | D14: 83.14 | E14: 79.60 | F14: 82.08 | G14: 331 | H14: 72.55 | I14: 是 | J14: 化学工程 | K14: 统考
A15: 12 | B15: 114145137135362 | C15: 周启旺 | D15: 82.14 | E15: 83.40 | F15: 82.52 | G15: 327 | H15: 72.25 | I15: 是 | J15: 化学工程 | K15: 统考
A16: 13 | B16: 114145136134654 | C16: 高铭轩 | D16: 82.57 | E16: 77.40 | F16: 81.02 | G16: 330 | H16: 72.01 | I16: 是 | J16: 化学工程 | K16: 统考
A17: 14 | B17: 114145121103561 | C17: 范志憶 | D17: 70.43 | E17: 86.00 | F17: 75.10 | G17: 346 | H17: 71.56 | I17: 是 | J17: 化学工程 | K17: 统考
A18: 15 | B18: 114145112432352 | C18: 李瑞 | D18: 78.57 | E18: 76.60 | F18: 77.98 | G18: 335 | H18: 71.39 | I18: 是 | J18: 化学工程 | K18: 统考
A19: 16 | B19: 114145121103579 | C19: 史纪博 | D19: 82.71 | E19: 82.60 | F19: 82.68 | G19: 315 | H19: 70.87 | I19: 是 | J19: 化学工程 | K19: 统考
A20: 17 | B20: 114145137065093 | C20: 张振宇 | D20: 81.14 | E20: 76.20 | F20: 79.66 | G20: 312 | H20: 69.30 | I20: 是 | J20: 化学工程 | K20: 统考
A21: 18 | B21: 114145137075169 | C21: 朱慧敏 | D21: 82.14 | E21: 79.60 | F21: 81.38 | G21: 304 | H21: 69.03 | I21: 是 | J21: 化学工程 | K21: 统考
A22: 19 | B22: 114145137034974 | C22: 张玲蕊 | D22: 78.71 | E22: 79.60 | F22: 78.98 | G22: 312 | H22: 69.03 | I22: 是 | J22: 化学工程 | K22: 统考
A23: 20 | B23: 114145143266337 | C23: 赵梦洋 | D23: 81.71 | E23: 82.20 | F23: =E23*0.3+D23*0.7 -> 81.86 | G23: 301 | H23: =G23/5*0.6+F23*0.4 -> 68.86 | I23: 是 | J23: 化学工程 | K23: 统考
A24: 21 | B24: 114145137024865 | C24: 王沾皓 | D24: 78.86 | E24: 83.00 | F24: 80.10 | G24: 306 | H24: 68.76 | I24: 是 | J24: 化学工程 | K24: 统考
A25: 22 | B25: 114145141305824 | C25: 徐树涵 | D25: 77.57 | E25: 73.60 | F25: 76.38 | G25: 317 | H25: 68.59 | I25: 是 | J25: 化学工程 | K25: 统考
A26: 23 | B26: 114145134614490 | C26: 杨晋 | D26: 80.29 | E26: 81.80 | F26: 80.74 | G26: 300 | H26: 68.30 | I26: 是 | J26: 化学工程 | K26: 统考
A27: 24 | B27: 114145113302884 | C27: 王卓 | D27: 75.71 | E27: 81.00 | F27: 77.30 | G27: 302 | H27: 67.16 | I27: 是 | J27: 化学工程 | K27: 统考
A28: 25 | B28: 114145151536814 | C28: 徐瑞 | D28: 81.00 | E28: 77.00 | F28: 79.80 | G28: 290 | H28: 66.72 | I28: 是 | J28: 化学工程 | K28: 统考
A29: 26 | B29: 114145151146706 | C29: 侯文杰 | D29: 81.43 | E29: 72.00 | F29: 78.60 | G29: 289 | H29: 66.12 | I29: 是 | J29: 化学工程 | K29: 统考
A30: 27 | B30: 114145137014751 | C30: 谢佳怡 | D30: 63.57 | E30: 67.00 | F30: 64.60 | G30: 300 | H30: 61.84 | I30: 候补 | K30: 统考
A31: 28 | B31: 114145137014749 | C31: 马艳军 | D31: 64.43 | E31: 61.40 | F31: 63.52 | G31: 298 | H31: 61.17 | I31: 候补 | K31: 统考
A32: 29 | B32: 114145162067282 | C32: 冯雨婷 | D32: 64.00 | E32: 63.00 | F32: 63.70 | G32: 295 | H32: 60.88 | I32: 否 | K32: 统考
A33: 30 | B33: 114145113062530 | C33: 马碧颖 | D33: 63.29 | E33: 61.80 | F33: 62.84 | G33: 297 | H33: 60.78 | I33: 否 | K33: 统考
A34: 31 | B34: 114145141205786 | C34: 王燕婷 | D34: 64.43 | E34: 63.00 | F34: 64.00 | G34: 290 | H34: 60.40 | I34: 否 | K34: 统考
A35: 备注：如果排名靠前的考生放弃或失去拟录取资格，按照候补名单的顺序依次递补。

Sheet 能源与催化系-学硕
A1: 化学工程与环境学院2025级全日制硕士研究生复试成绩汇总暨拟录取名单统计表
A2: 复试小组名称：能源与催化工程系 （学术型）
A3: 序号 | B3: 考生编号 | C3: 姓名 | D3: 面试专业成绩 | E3: 面试英语成绩 | F3: 复试成绩 | G3: 初试成绩 | H3: 总成绩 | I3: 是否拟录取 | J3: 拟录取专业 | K3: 考生来源(推免/统考)
A4: 1 | B4: 114145141335867 | C4: 宋亚宁 | D4: 85.00 | E4: 87.00 | F4: =E4*0.3+D4*0.7 -> 85.60 | G4: 367 | H4: =G4/5*0.6+F4*0.4 -> 78.28 | I4: 是 | J4: 化学工程与技术 | K4: 统考
A5: 2 | B5: 114145112332299 | C5: 刘熙 | D5: 87.00 | E5: 83.80 | F5: =E5*0.3+D5*0.7 -> 86.04 | G5: 357 | H5: =G5/5*0.6+F5*0.4 -> 77.26 | I5: 是 | J5: 化学工程与技术 | K5: 统考
A6: 3 | B6: 114145165348032 | C6: 江晟煜 | D6: 80.20 | E6: 78.40 | F6: 79.66 | G6: 356 | H6: 74.58 | I6: 是 | J6: 化学工程与技术 | K6: 统考
A7: 4 | B7: 114145111641844 | C7: 周鹏 | D7: 80.80 | E7: 78.80 | F7: 80.20 | G7: 351 | H7: 74.20 | I7: 是 | J7: 化学工程与技术 | K7: 统考
A8: 5 | B8: 114145141305825 | C8: 赵中义 | D8: 84.60 | E8: 84.60 | F8: 84.60 | G8: 331 | H8: 73.56 | I8: 是 | J8: 化学工程与技术 | K8: 统考
A9: 6 | B9: 114145151106663 | C9: 于可鑫 | D9: 84.40 | E9: 81.40 | F9: 83.50 | G9: 331 | H9: 73.12 | I9: 是 | J9: 化学工程与技术 | K9: 统考
A10: 7 | B10: 114145113593143 | C10: 史响晴 | D10: 78.00 | E10: 79.80 | F10: 78.54 | G10: 340 | H10: 72.22 | I10: 是 | J10: 化学工程与技术 | K10: 统考
A11: 8 | B11: 114145114053178 | C11: 周柯 | D11: 84.40 | E11: 85.80 | F11: 84.82 | G11: 317 | H11: 71.97 | I11: 是 | J11: 化学工程与技术 | K11: 统考
A12: 9 | B12: 114145113052504 | C12: 张冰堰 | D12: 82.00 | E12: 86.80 | F12: 83.44 | G12: 316 | H12: 71.30 | I12: 是 | J12: 化学工程与技术 | K12: 统考
A13: 10 | B13: 114145141225808 | C13: 谷盼盼 | D13: 81.40 | E13: 76.40 | F13: 79.90 | G13: 327 | H13: 71.20 | I13: 是 | J13: 化学工程与技术 | K13: 统考
A14: 11 | B14: 114145137014745 | C14: 李青 | D14: 83.60 | E14: 83.20 | F14: 83.48 | G14: 313 | H14: 70.95 | I14: 是 | J14: 化学工程与技术 | K14: 统考
A15: 12 | B15: 114145151836856 | C15: 黄云翔 | D15: 77.20 | E15: 86.40 | F15: 79.96 | G15: 324 | H15: 70.86 | I15: 是 | J15: 化学工程与技术 | K15: 统考
A16: 13 | B16: 114145142306169 | C16: 李骏扬 | D16: 82.00 | E16: 85.40 | F16: 83.02 | G16: 312 | H16: 70.65 | I16: 是 | J16: 化学工程与技术 | K16: 统考
A17: 14 | B17: 114145137034967 | C17: 田中贺 | D17: 78.40 | E17: 73.40 | F17: 76.90 | G17: 329 | H17: 70.24 | I17: 是 | J17: 化学工程与技术 | K17: 统考
A18: 15 | B18: 114145151206722 | C18: 王兵 | D18: 77.20 | E18: 81.40 | F18: 78.46 | G18: 320 | H18: 69.78 | I18: 是 | J18: 化学工程与技术 | K18: 统考
A19: 16 | B19: 114145137024858 | C19: 马丽 | D19: 79.40 | E19: 84.00 | F19: 80.78 | G19: 312 | H19: 69.75 | I19: 是 | J19: 化学工程与技术 | K19: 统考
A20: 17 | B20: 114145137065091 | C20: 尉晓航 | D20: 79.80 | E20: 85.80 | F20: 81.60 | G20: 307 | H20: 69.48 | I20: 是 | J20: 化学工程与技术 | K20: 统考
A21: 18 | B21: 114145145016455 | C21: 王李良 | D21: 80.00 | E21: 76.00 | F21: 78.80 | G21: 316 | H21: 69.44 | I21: 是 | J21: 化学工程与技术 | K21: 统考
A22: 19 | B22: 114145137024861 | C22: 万梓琪 | D22: 81.60 | E22: 80.40 | F22: 81.24 | G22: 306 | H22: 69.22 | I22: 是 | J22: 化学工程与技术 | K22: 统考
A23: 20 | B23: 114145151106658 | C23: 李龙飞 | D23: 84.80 | E23: 80.00 | F23: 83.36 | G23: 297 | H23: 68.98 | I23: 是 | J23: 化学工程与技术 | K23: 统考
A24: 21 | B24: 114145113463028 | C24: 乔梦雨婷 | D24: 84.80 | E24: 79.60 | F24: 83.24 | G24: 297 | H24: 68.94 | I24: 是 | J24: 化学工程与技术 | K24: 统考
A25: 22 | B25: 114145141085657 | C25: 姜静茹 | D25: 81.80 | E25: 82.20 | F25: 81.92 | G25: 301 | H25: 68.89 | I25: 是 | J25: 化学工程与技术 | K25: 统考
A26: 23 | B26: 114145141235812 | C26: 胡佳雪 | D26: 82.80 | E26: 79.20 | F26: 81.72 | G26: 298 | H26: 68.45 | I26: 是 | J26: 化学工程与技术 | K26: 统考
A27: 24 | B27: 114145137155465 | C27: 钟晓艺 | D27: 79.80 | E27: 84.60 | F27: 81.24 | G27: 299 | H27: 68.38 | I27: 是 | J27: 化学工程与技术 | K27: 统考
A28: 25 | B28: 114145137034970 | C28: 吴同笙 | D28: 76.80 | E28: 78.60 | F28: 77.34 | G28: 311 | H28: 68.26 | I28: 是 | J28: 化学工程与技术 | K28: 统考
A29: 26 | B29: 114145137145396 | C29: 路慧 | D29: 79.60 | E29: 76.60 | F29: 78.70 | G29: 304 | H29: 67.96 | I29: 候补 | K29: 统考
A30: 27 | B30: 114145114133271 | C30: 马嘉仪 | D30: 76.60 | E30: 78.00 | F30: 77.02 | G30: 309 | H30: 67.89 | I30: 候补 | K30: 统考
A31: 28 | B31: 114145137024854 | C31: 刘天姿 | D31: 81.80 | E31: 77.00 | F31: 80.36 | G31: 297 | H31: 67.78 | I31: 否 | K31: 统考
A32: 29 | B32: 114145114153297 | C32: 牛琴琴 | D32: 75.20 | E32: 78.80 | F32: 76.28 | G32: 308 | H32: 67.47 | I32: 否 | K32: 统考
A33: 30 | B33: 114145113092646 | C33: 王薪琦 | D33: 74.80 | E33: 76.80 | F33: 75.40 | G33: 298 | H33: 65.92 | I33: 否 | K33: 统考
A34: 备注：如果排名靠前的考生放弃或失去拟录取资格，按照候补名单的顺序依次递补。

Sheet 能源与催化系-专硕
A1: 化学工程与环境学院2025级全日制专业学位硕士研究生复试成绩汇总暨拟录取名单统计表
A2: 复试小组名称：能源与催化工程系 （专业型）
A3: 序号 | B3: 考生编号 | C3: 姓名 | D3: 面试专业成绩 | E3: 面试英语成绩 | F3: 复试成绩 | G3: 初试成绩 | H3: 总成绩 | I3: 是否拟录取 | J3: 拟录取专业 | K3: 考生来源(推免/统考)
A4: 1 | B4: 114145134604479 | C4: 周婷 | D4: 86.40 | E4: 87.60 | F4: =D4*0.7+E4*0.3 -> 86.76 | G4: 380 | H4: =G4/5*0.6+F4*0.4 -> 80.30 | I4: 是 | J4: 化学工程 | K4: 统考
A5: 2 | B5: 114145141205787 | C5: 张增辉 | D5: 80.80 | E5: 80.20 | F5: =D5*0.7+E5*0.3 -> 80.62 | G5: 379 | H5: =G5/5*0.6+F5*0.4 -> 77.73 | I5: 是 | J5: 化学工程 | K5: 统考
A6: 3 | B6: 114145136024613 | C6: 王馨缘 | D6: 87.20 | E6: 83.20 | F6: 86.00 | G6: 350 | H6: 76.40 | I6: 是 | J6: 化学工程 | K6: 统考
A7: 4 | B7: 114145113523114 | C7: 李仲蒲 | D7: 86.80 | E7: 81.40 | F7: 85.18 | G7: 348 | H7: 75.83 | I7: 是 | J7: 化学工程 | K7: 统考
A8: 5 | B8: 114145133084301 | C8: 韩梦迪 | D8: 83.00 | E8: 77.80 | F8: 81.44 | G8: 353 | H8: 74.94 | I8: 是 | J8: 化学工程 | K8: 统考
A9: 6 | B9: 114145137085224 | C9: 王莹莹 | D9: 86.00 | E9: 82.20 | F9: 84.86 | G9: 341 | H9: 74.86 | I9: 是 | J9: 化学工程 | K9: 统考
A10: 7 | B10: 114145151236735 | C10: 贾欣 | D10: 81.60 | E10: 75.80 | F10: 79.86 | G10: 350 | H10: 73.94 | I10: 是 | J10: 化学工程 | K10: 统考
A11: 8 | B11: 114145137155454 | C11: 刘有焱 | D11: 87.00 | E11: 77.60 | F11: 84.18 | G11: 334 | H11: 73.75 | I11: 是 | J11: 化学工程 | K11: 统考
A12: 9 | B12: 114145132224226 | C12: 李晴燕 | D12: 87.60 | E12: 85.60 | F12: 87.00 | G12: 324 | H12: 73.68 | I12: 是 | J12: 化学工程 | K12: 统考
A13: 10 | B13: 114145113302893 | C13: 赵佳 | D13: 75.80 | E13: 88.20 | F13: 79.52 | G13: 348 | H13: 73.57 | I13: 是 | J13: 化学工程 | K13: 统考
A14: 11 | B14: 114145113302871 | C14: 贾一凡 | D14: 83.80 | E14: 79.40 | F14: 82.48 | G14: 333 | H14: 72.95 | I14: 是 | J14: 化学工程 | K14: 统考
A15: 12 | B15: 114145111641979 | C15: 李臻彦 | D15: 88.20 | E15: 83.00 | F15: 86.64 | G15: 305 | H15: 71.26 | I15: 是 | J15: 化学工程 | K15: 统考
A16: 13 | B16: 114145113302890 | C16: 余方黎 | D16: 81.80 | E16: 77.40 | F16: 80.48 | G16: 319 | H16: 70.47 | I16: 是 | J16: 化学工程 | K16: 统考
A17: 14 | B17: 114145113052503 | C17: 武哲琼 | D17: 83.00 | E17: 78.80 | F17: 81.74 | G17: 314 | H17: 70.38 | I17: 是 | J17: 化学工程 | K17: 统考
A18: 15 | B18: 114145121103597 | C18: 朱宜娇 | D18: 85.60 | E18: 80.80 | F18: 84.16 | G18: 303 | H18: 70.02 | I18: 是 | J18: 化学工程 | K18: 统考
A19: 16 | B19: 114145134014340 | C19: 王璐 | D19: 86.20 | E19: 80.20 | F19: =D19*0.7+E19*0.3 -> 84.40 | G19: 302 | H19: 70.00 | I19: 是 | J19: 化学工程 | K19: 统考
A20: 17 | B20: 114145137024870 | C20: 张雨露 | D20: 78.00 | E20: 80.20 | F20: 78.66 | G20: 318 | H20: 69.62 | I20: 是 | J20: 化学工程 | K20: 统考
A21: 18 | B21: 114145113523118 | C21: 王思微 | D21: 81.60 | E21: 79.20 | F21: 80.88 | G21: 310 | H21: 69.55 | I21: 是 | J21: 化学工程 | K21: 统考
A22: 19 | B22: 114145113022391 | C22: 晁鸣阳 | D22: 73.00 | E22: 67.00 | F22: 71.20 | G22: 342 | H22: 69.52 | I22: 是 | J22: 化学工程 | K22: 统考
A23: 20 | B23: 114145113032417 | C23: 惠聚 | D23: 75.80 | E23: 74.20 | F23: 75.32 | G23: 328 | H23: 69.49 | I23: 是 | J23: 化学工程 | K23: 统考
A24: 21 | B24: 114145141045590 | C24: 闫乾宇 | D24: 84.20 | E24: 73.00 | F24: 80.84 | G24: 305 | H24: 68.94 | I24: 是 | J24: 化学工程 | K24: 统考
A25: 22 | B25: 114145111641731 | C25: 吴倩 | D25: 80.60 | E25: 74.40 | F25: 78.74 | G25: 305 | H25: 68.10 | I25: 是 | J25: 化学工程 | K25: 统考
A26: 23 | B26: 114145121123670 | C26: 郑冰玉 | D26: 75.20 | E26: 80.20 | F26: 76.70 | G26: 310 | H26: 67.88 | I26: 是 | J26: 化学工程 | K26: 统考
A27: 24 | B27: 114145161607264 | C27: 王飞燕 | D27: 75.80 | E27: 82.60 | F27: 77.84 | G27: 304 | H27: 67.62 | I27: 候补 | K27: 统考
A28: 25 | B28: 114145121103584 | C28: 王相冬 | D28: 80.80 | E28: 69.80 | F28: 77.50 | G28: 302 | H28: 67.24 | I28: 候补 | K28: 统考
A29: 26 | B29: 114145161037063 | C29: 张胜武 | D29: 76.00 | E29: 82.60 | F29: 77.98 | G29: 299 | H29: 67.07 | I29: 否 | K29: 统考
A30: 27 | B30: 114145137024853 | C30: 刘佳琪 | D30: 75.80 | E30: 77.80 | F30: 76.40 | G30: 301 | H30: 66.68 | I30: 否 | K30: 统考
A31: 28 | B31: 114145137165499 | C31: 王瑞智 | D31: 70.20 | E31: 72.60 | F31: 70.92 | G31: 299 | H31: 64.25 | I31: 否 | K31: 统考
A32: 备注：如果排名靠前的考生放弃或失去拟录取资格，按照候补名单的顺序依次递补。

Sheet 提高采收率-学硕
A1: 化学工程与环境学院2025级全日制硕士研究生复试成绩汇总暨拟录取名单统计表
A2: 复试小组名称：提高采收率组
A3: 序号 | B3: 考生编号 | C3: 姓名 | D3: 面试专业成绩 | E3: 面试英语成绩 | F3: 复试成绩 | G3: 初试成绩 | H3: 总成绩 | I3: 是否拟录取 | J3: 拟录取专业 | K3: 考生来源(推免/统考)
A4: 1 | B4: 114145141305823 | C4: 李钰绵 | D4: 85.17 | E4: 85.50 | F4: =(D4*0.7+E4*0.3) -> 85.27 | G4: 322 | H4: =(G4/5)*0.6+F4*0.4 -> 72.75 | I4: 是 | J4: 化学工程与技术 | K4: 统考
A5: 2 | B5: 114145137145401 | C5: 王逢瑶 | D5: 87.00 | E5: 88.67 | F5: =(D5*0.7+E5*0.3) -> 87.50 | G5: 296 | H5: 70.52 | I5: 是 | J5: 化学工程与技术 | K5: 统考
A6: 3 | B6: 114145142366205 | C6: 王梓元 | D6: 86.17 | E6: 86.50 | F6: 86.27 | G6: 297 | H6: 70.15 | I6: 是 | J6: 化学工程与技术 | K6: 统考
A7: 4 | B7: 114145137165498 | C7: 马文倩 | D7: 85.83 | E7: 87.83 | F7: 86.43 | G7: 293 | H7: 69.73 | I7: 是 | J7: 化学工程与技术 | K7: 统考
A8: 5 | B8: 114145113593142 | C8: 崔硕彬 | D8: 85.83 | E8: 86.83 | F8: 86.13 | G8: 291 | H8: 69.37 | I8: 是 | J8: 化学工程与技术 | K8: 统考
A9: 6 | B9: 114145121103566 | C9: 韩雪 | D9: 85.67 | E9: 85.00 | F9: 85.47 | G9: 293 | H9: 69.35 | I9: 是 | J9: 化学工程与技术 | K9: 统考
A10: 7 | B10: 114145137155459 | C10: 王恬恬 | D10: 83.83 | E10: 85.33 | F10: 84.28 | G10: 294 | H10: 68.99 | I10: 是 | J10: 化学工程与技术 | K10: 统考
A11: 8 | B11: 114145143106270 | C11: 林素贞 | D11: 84.50 | E11: 84.00 | F11: 84.35 | G11: 291 | H11: 68.66 | I11: 是 | J11: 化学工程与技术 | K11: 统考
A12: 9 | B12: 114145136154657 | C12: 罗昱如 | D12: 75.17 | E12: 73.67 | F12: 74.72 | G12: 292 | H12: 64.93 | I12: 候补 | K12: 统考
A13: 10 | B13: 114145137095282 | C13: 王毅 | D13: 74.83 | E13: 74.50 | F13: 74.73 | G13: 291 | H13: 64.81 | I13: 候补 | K13: 统考
A14: 备注：如果排名靠前的考生放弃或失去拟录取资格，按照候补名单的顺序依次递补。

Sheet 提高采收率-专硕
A1: 化学工程与环境学院2025级全日制专业学位硕士研究生复试成绩汇总暨拟录取名单统计表
A2: 复试小组名称：提高采收率组
A3: 序号 | B3: 考生编号 | C3: 姓名 | D3: 面试专业成绩 | E3: 面试英语成绩 | F3: 复试成绩 | G3: 初试成绩 | H3: 总成绩 | I3: 是否拟录取 | J3: 拟录取专业 | K3: 考生来源(推免/统考)
A4: 1 | B4: 114145151106661 | C4: 魏帅杰 | D4: 86.60 | E4: 88.40 | F4: =(D4*0.7+E4*0.3) -> 87.14 | G4: 366 | H4: =(G4/5)*0.6+F4*0.4 -> 78.78 | I4: 是 | J4: 化学工程 | K4: 统考
A5: 2 | B5: 114145123063860 | C5: 闫家慧 | D5: 86.40 | E5: 86.20 | F5: 86.34 | G5: 325 | H5: 73.54 | I5: 是 | J5: 化学工程 | K5: 统考
A6: 3 | B6: 114145137014757 | C6: 雒雨欣 | D6: 86.40 | E6: 86.00 | F6: 86.28 | G6: 300 | H6: 70.51 | I6: 是 | J6: 化学工程 | K6: 统考
A7: 4 | B7: 114145142286153 | C7: 吴蕊 | D7: 86.00 | E7: 85.40 | F7: 85.82 | G7: 296 | H7: 69.85 | I7: 是 | J7: 化学工程 | K7: 统考
A8: 5 | B8: 114145151146705 | C8: 何佳妮 | D8: 86.60 | E8: 85.20 | F8: 86.18 | G8: 294 | H8: 69.75 | I8: 是 | J8: 化学工程 | K8: 统考
A9: 6 | B9: 114145121033486 | C9: 王佳杰 | D9: 84.40 | E9: 84.80 | F9: 84.52 | G9: 299 | H9: 69.69 | I9: 是 | J9: 化学工程 | K9: 统考
A10: 7 | B10: 114145137034978 | C10: 周含笑 | D10: 85.40 | E10: 84.60 | F10: 85.16 | G10: 295 | H10: 69.46 | I10: 是 | J10: 化学工程 | K10: 统考
A11: 8 | B11: 114145137024855 | C11: 刘莹 | D11: 85.80 | E11: 86.40 | F11: 85.98 | G11: 291 | H11: 69.31 | I11: 是 | J11: 化学工程 | K11: 统考
A12: 9 | B12: 114145137175514 | C12: 董宏博 | D12: 84.40 | E12: 85.00 | F12: 84.58 | G12: 293 | H12: 68.99 | I12: 是 | J12: 化学工程 | K12: 统考
A13: 10 | B13: 114145137175526 | C13: 邹梦娜 | D13: 83.40 | E13: 84.20 | F13: 83.64 | G13: 296 | H13: 68.98 | I13: 是 | J13: 化学工程 | K13: 统考
A14: 11 | B14: 114145151206721 | C14: 邓茹丹 | D14: 83.00 | E14: 83.20 | F14: 83.06 | G14: 296 | H14: 68.74 | I14: 是 | J14: 化学工程 | K14: 统考
A15: 12 | B15: 114145141205784 | C15: 孙雨欣 | D15: 84.40 | E15: 85.60 | F15: 84.76 | G15: 290 | H15: 68.70 | I15: 是 | J15: 化学工程 | K15: 统考
A16: 13 | B16: 114145137165500 | C16: 吴亚捷 | D16: 84.20 | E16: 84.80 | F16: 84.38 | G16: 289 | H16: 68.43 | I16: 是 | J16: 化学工程 | K16: 统考
A17: 14 | B17: 114145137014744 | C17: 李金杰 | D17: 83.80 | E17: 83.40 | F17: 83.68 | G17: 291 | H17: 68.39 | I17: 是 | J17: 化学工程 | K17: 统考
A18: 15 | B18: 114145137065089 | C18: 王聪 | D18: 81.60 | E18: 82.00 | F18: 81.72 | G18: 297 | H18: 68.33 | I18: 是 | J18: 化学工程 | K18: 统考
A19: 16 | B19: 114145165348040 | C19: 刘鑫宇 | D19: 83.20 | E19: 83.40 | F19: 83.26 | G19: 289 | H19: 67.98 | I19: 是 | J19: 化学工程 | K19: 统考
A20: 17 | B20: 114145137175525 | C20: 张滨 | D20: 76.00 | E20: 75.40 | F20: 75.82 | G20: 293 | H20: 65.49 | I20: 候补 | K20: 统考
A21: 18 | B21: 114145113523109 | C21: 韩思齐 | D21: 73.00 | E21: 73.80 | F21: 73.24 | G21: 297 | H21: 64.94 | I21: 候补 | K21: 统考
A22: 19 | B22: 114145113022390 | C22: 于永浩 | D22: 74.20 | E22: 73.00 | F22: 73.84 | G22: 289 | H22: 64.22 | I22: 否 | K22: 统考
A23: 备注：如果排名靠前的考生放弃或失去拟录取资格，按照候补名单的顺序依次递补。

Sheet 环境科学与工程-学硕
A1: 化学工程与环境学院2025级全日制硕士研究生复试成绩汇总暨拟录取名单统计表
A2: 复试小组名称： 环境科学与工程
A3: 序号 | B3: 考生编号 | C3: 姓名 | D3: 面试专业成绩 | E3: 面试英语成绩 | F3: 复试成绩 | G3: 初试成绩 | H3: 总成绩 | I3: 是否拟录取 | J3: 拟录取专业 | K3: 考生来源(推免/统考)
A4: 1 | B4: 114145111641819 | C4: 颜涵 | D4: 86.00 | E4: 85.00 | F4: =D4*0.7+E4*0.3 -> 85.70 | G4: 356 | H4: =G4/5*0.6+F4*0.4 -> 77.00 | I4: 是 | J4: 环境科学与工程 | K4: 统考
A5: 2 | B5: 114145111641616 | C5: 辛洋 | D5: 83.40 | E5: 85.60 | F5: =D5*0.7+E5*0.3 -> 84.06 | G5: 358 | H5: 76.58 | I5: 是 | J5: 环境科学与工程 | K5: 统考
A6: 3 | B6: 114145165348068 | C6: 彭正科 | D6: 91.40 | E6: 83.20 | F6: 88.94 | G6: 338 | H6: 76.14 | I6: 是 | J6: 环境科学与工程 | K6: 统考
A7: 4 | B7: 114145111641846 | C7: 刘恩慧 | D7: 83.60 | E7: 86.20 | F7: 84.38 | G7: 347 | H7: 75.39 | I7: 是 | J7: 环境科学与工程 | K7: 统考
A8: 5 | B8: 114145144016365 | C8: 吴家乐 | D8: 87.20 | E8: 89.40 | F8: 87.86 | G8: 333 | H8: 75.10 | I8: 是 | J8: 环境科学与工程 | K8: 统考
A9: 6 | B9: 114145111641640 | C9: 吕潇 | D9: 87.60 | E9: 84.40 | F9: 86.64 | G9: 329 | H9: 74.14 | I9: 是 | J9: 环境科学与工程 | K9: 统考
A10: 7 | B10: 114145114073202 | C10: 周颖 | D10: 85.60 | E10: 80.60 | F10: 84.10 | G10: 332 | H10: 73.48 | I10: 是 | J10: 环境科学与工程 | K10: 统考
A11: 8 | B11: 114145142266146 | C11: 雷雨田 | D11: 83.00 | E11: 86.60 | F11: 84.08 | G11: 325 | H11: 72.63 | I11: 是 | J11: 环境科学与工程 | K11: 统考
A12: 9 | B12: 114145137175527 | C12: 张涵毓 | D12: 86.40 | E12: 89.80 | F12: 87.42 | G12: 312 | H12: 72.41 | I12: 是 | J12: 环境科学与工程 | K12: 统考
A13: 10 | B13: 114145136074630 | C13: 朱敏 | D13: 79.40 | E13: 77.00 | F13: 78.68 | G13: 334 | H13: 71.55 | I13: 是 | J13: 环境科学与工程 | K13: 统考
A14: 11 | B14: 114145111641924 | C14: 明霞 | D14: 80.60 | E14: 80.40 | F14: 80.54 | G14: 327 | H14: 71.46 | I14: 是 | J14: 环境科学与工程 | K14: 统考
A15: 12 | B15: 114145111641257 | C15: 张梓睿 | D15: 80.60 | E15: 84.60 | F15: 81.80 | G15: 321 | H15: 71.24 | I15: 是 | J15: 环境科学与工程 | K15: 统考
A16: 13 | B16: 114145151106665 | C16: 解静 | D16: 84.80 | E16: 78.60 | F16: 82.94 | G16: 316 | H16: 71.10 | I16: 是 | J16: 环境科学与工程 | K16: 统考
A17: 14 | B17: 114145111641261 | C17: 符惜晨 | D17: 81.00 | E17: 76.60 | F17: 79.68 | G17: 326 | H17: 70.99 | I17: 是 | J17: 环境科学与工程 | K17: 统考
A18: 15 | B18: 114145137065099 | C18: 王惠婧 | D18: 81.40 | E18: 81.40 | F18: 81.40 | G18: 318 | H18: 70.72 | I18: 是 | J18: 环境科学与工程 | K18: 统考
A19: 16 | B19: 114145111641827 | C19: 康圣 | D19: 81.00 | E19: 80.20 | F19: 80.76 | G19: 319 | H19: 70.58 | I19: 是 | J19: 环境科学与工程 | K19: 统考
A20: 17 | B20: 114145115383469 | C20: 柯韵 | D20: 65.40 | E20: 79.00 | F20: 69.48 | G20: 349 | H20: 69.67 | I20: 是 | J20: 环境科学与工程 | K20: 统考
A21: 18 | B21: 114145150126506 | C21: 刘艺蔚 | D21: 85.00 | E21: 73.20 | F21: 81.46 | G21: 309 | H21: 69.66 | I21: 是 | J21: 环境科学与工程 | K21: 统考
A22: 19 | B22: 114145132224227 | C22: 朱叙诚 | D22: 84.00 | E22: 77.20 | F22: 81.96 | G22: 307 | H22: 69.62 | I22: 是 | J22: 环境科学与工程 | K22: 统考
A23: 20 | B23: 114145141145708 | C23: 周晶潇 | D23: 84.60 | E23: 69.20 | F23: 79.98 | G23: 313 | H23: 69.55 | I23: 是 | J23: 环境科学与工程 | K23: 统考
A24: 21 | B24: 114145111642080 | C24: 张弘琨 | D24: 81.80 | E24: 85.40 | F24: 82.88 | G24: 302 | H24: 69.39 | I24: 是 | J24: 环境科学与工程 | K24: 统考
A25: 22 | B25: 114145137014758 | C25: 刘群 | D25: 79.60 | E25: 79.80 | F25: 79.66 | G25: 311 | H25: 69.18 | I25: 是 | J25: 环境科学与工程 | K25: 统考
A26: 23 | B26: 114145161497239 | C26: 黄佩垚 | D26: 88.00 | E26: 89.00 | F26: 88.30 | G26: 276 | H26: 68.44 | I26: 是 | J26: 环境科学与工程 | K26: 统考
A27: 24 | B27: 114145165177782 | C27: 赖瑞诚 | D27: 88.00 | E27: 79.20 | F27: 85.36 | G27: 281 | H27: 67.86 | I27: 是 | J27: 环境科学与工程 | K27: 统考
A28: 25 | B28: 114145151236737 | C28: 刘宏利 | D28: 73.40 | E28: 81.80 | F28: 75.92 | G28: 311 | H28: 67.69 | I28: 是 | J28: 环境科学与工程 | K28: 统考
A29: 26 | B29: 114145113322916 | C29: 刘晓茵 | D29: 74.80 | E29: 73.40 | F29: 74.38 | G29: 299 | H29: 65.63 | I29: 是 | J29: 环境科学与工程 | K29: 统考
A30: 27 | B30: 114145144036372 | C30: 莫晓凝 | D30: 80.40 | E30: 77.80 | F30: 79.62 | G30: 274 | H30: 64.73 | I30: 候补 | K30: 统考
A31: 28 | B31: 114145112182279 | C31: 吴雪菲 | D31: 73.40 | E31: 77.00 | F31: 74.48 | G31: 284 | H31: 63.87 | I31: 候补 | K31: 统考
A32: 29 | B32: 114145132204204 | C32: 陈宇晟 | D32: 73.20 | E32: 70.60 | F32: 72.42 | G32: 286 | H32: 63.29 | I32: 否 | K32: 统考
A33: 30 | B33: 114145112432353 | C33: 袁家兴 | D33: 70.60 | E33: 72.50 | F33: 71.17 | G33: 287 | H33: 62.91 | I33: 否 | K33: 统考
A34: 31 | B34: 114145113042458 | C34: 刘夏夏 | D34: 65.00 | E34: 76.80 | F34: 68.54 | G34: 272 | H34: 60.06 | I34: 否 | K34: 统考
A35: 备注：如果排名靠前的考生放弃或失去拟录取资格，按照候补名单的顺序依次递补。

Sheet 环境工程-专硕
A1: 化学工程与环境学院2025级全日制专业学位硕士研究生复试成绩汇总暨拟录取名单统计表
A2: 复试小组名称： 环境工程专业硕士
A3: 序号 | B3: 考生编号 | C3: 姓名 | D3: 面试专业成绩 | E3: 面试英语成绩 | F3: 复试成绩 | G3: 初试成绩 | H3: 总成绩 | I3: 是否拟录取 | J3: 拟录取专业 | K3: 考生来源(推免/统考)
A4: 1 | B4: 114145111641330 | C4: 焦俊杰 | D4: 77.40 | E4: 86.40 | F4: =E4*0.3+D4*0.7 -> 80.10 | G4: 380 | H4: =G4/5*0.6+F4*0.4 -> 77.64 | I4: 是 | J4: 环境工程 | K4: 统考
A5: 2 | B5: 114145165348065 | C5: 陈禹行 | D5: 87.80 | E5: 85.60 | F5: =E5*0.3+D5*0.7 -> 87.14 | G5: 355 | H5: =G5/5*0.6+F5*0.4 -> 77.46 | I5: 是 | J5: 环境工程 | K5: 统考
A6: 3 | B6: 114145111641730 | C6: 徐執伟 | D6: 84.00 | E6: 86.00 | F6: =E6*0.3+D6*0.7 -> 84.60 | G6: 361 | H6: 77.16 | I6: 是 | J6: 环境工程 | K6: 统考
A7: 4 | B7: 114145161037067 | C7: 荣晓妍 | D7: 81.60 | E7: 82.00 | F7: 81.72 | G7: 368 | H7: 76.85 | I7: 是 | J7: 环境工程 | K7: 统考
A8: 5 | B8: 114145111641554 | C8: 田名杰 | D8: 82.40 | E8: 85.20 | F8: 83.24 | G8: 361 | H8: 76.62 | I8: 是 | J8: 环境工程 | K8: 统考
A9: 6 | B9: 114145143086261 | C9: 王梦琳 | D9: 85.80 | E9: 87.00 | F9: 86.16 | G9: 351 | H9: 76.58 | I9: 是 | J9: 环境工程 | K9: 统考
A10: 7 | B10: 114145137145403 | C10: 杨晓冉 | D10: 75.60 | E10: 85.80 | F10: 78.66 | G10: 373 | H10: 76.22 | I10: 是 | J10: 环境工程 | K10: 统考
A11: 8 | B11: 114145121103602 | C11: 孙美丽 | D11: 78.00 | E11: 89.20 | F11: 81.36 | G11: 355 | H11: 75.14 | I11: 是 | J11: 环境工程 | K11: 统考
A12: 9 | B12: 114145132204205 | C12: 黄嘉锋 | D12: 77.80 | E12: 83.00 | F12: 79.36 | G12: 357 | H12: 74.58 | I12: 是 | J12: 环境工程 | K12: 统考
A13: 10 | B13: 114145134254463 | C13: 高宇 | D13: 79.80 | E13: 83.60 | F13: 80.94 | G13: 348 | H13: 74.14 | I13: 是 | J13: 环境工程 | K13: 统考
A14: 11 | B14: 114145111641985 | C14: 李波 | D14: 76.80 | E14: 80.80 | F14: 78.00 | G14: 355 | H14: 73.80 | I14: 是 | J14: 环境工程 | K14: 统考
A15: 12 | B15: 114145121393733 | C15: 王建智 | D15: 81.00 | E15: 78.60 | F15: 80.28 | G15: 344 | H15: 73.39 | I15: 是 | J15: 环境工程 | K15: 统考
A16: 13 | B16: 114145137014759 | C16: 仲崇颖 | D16: 79.00 | E16: 87.00 | F16: 81.40 | G16: 334 | H16: 72.64 | I16: 是 | J16: 环境工程 | K16: 统考
A17: 14 | B17: 114145123153994 | C17: 李佳芯 | D17: 89.20 | E17: 82.60 | F17: 87.22 | G17: 314 | H17: 72.57 | I17: 是 | J17: 环境工程 | K17: 统考
A18: 15 | B18: 114145111641550 | C18: 吴晓鹏 | D18: 79.20 | E18: 77.20 | F18: 78.60 | G18: 341 | H18: 72.36 | I18: 是 | J18: 环境工程 | K18: 统考
A19: 16 | B19: 114145121103600 | C19: 李磊 | D19: 88.80 | E19: 73.60 | F19: 84.24 | G19: 322 | H19: 72.34 | I19: 是 | J19: 环境工程 | K19: 统考
A20: 17 | B20: 114145121103598 | C20: 曹淑雯 | D20: 87.80 | E20: 83.40 | F20: 86.48 | G20: 313 | H20: 72.15 | I20: 是 | J20: 环境工程 | K20: 统考
A21: 18 | B21: 114145134294472 | C21: 李朋举 | D21: 83.20 | E21: 80.60 | F21: 82.42 | G21: 322 | H21: 71.61 | I21: 是 | J21: 环境工程 | K21: 统考
A22: 19 | B22: 114145112462367 | C22: 刘宇茜 | D22: 78.80 | E22: 83.20 | F22: 80.12 | G22: 329 | H22: 71.53 | I22: 是 | J22: 环境工程 | K22: 统考
A23: 20 | B23: 114145151146715 | C23: 黄秀娟 | D23: 75.60 | E23: 87.80 | F23: 79.26 | G23: 330 | H23: 71.30 | I23: 是 | J23: 环境工程 | K23: 统考
A24: 21 | B24: 114145111641962 | C24: 赵巧悦 | D24: 79.80 | E24: 79.80 | F24: 79.80 | G24: 321 | H24: =G24/5*0.6+F24*0.4 -> 70.44 | I24: 是 | J24: 环境工程 | K24: 统考
A25: 22 | B25: 114145137024873 | C25: 陈宇 | D25: 71.20 | E25: 79.20 | F25: 73.60 | G25: 334 | H25: 69.52 | I25: 是 | J25: 环境工程 | K25: 统考
A26: 23 | B26: 114145121103603 | C26: 王俪晔 | D26: 79.20 | E26: 78.20 | F26: 78.90 | G26: 316 | H26: 69.48 | I26: 候补 | K26: 统考
A27: 24 | B27: 114145142266147 | C27: 徐一峰 | D27: 75.20 | E27: 72.40 | F27: 74.36 | G27: 331 | H27: 69.46 | I27: 候补 | K27: 统考
A28: 25 | B28: 114145137075173 | C28: 李煜 | D28: 71.00 | E28: 86.40 | F28: 75.62 | G28: 320 | H28: 68.65 | I28: 否 | K28: 统考
A29: 26 | B29: 114145151206724 | C29: 余香 | D29: 73.20 | E29: 81.20 | F29: 75.60 | G29: 311 | H29: 67.56 | I29: 否 | K29: 统考
A30: 备注：如果排名靠前的考生放弃或失去拟录取资格，按照候补名单的顺序依次递补。

Sheet 环境工程-非全日制
A1: 化学工程与环境学院2025级非全日制硕士研究生复试成绩汇总暨拟录取名单统计表
A2: 复试小组名称： 环境工程专硕
A3: 序号 | B3: 考生编号 | C3: 姓名 | D3: 面试专业成绩 | E3: 面试英语成绩 | F3: 复试成绩 | G3: 初试成绩 | H3: 总成绩 | I3: 是否拟录取 | J3: 拟录取专业 | K3: 考生来源(推免/统考)
A4: 1 | B4: 114145311641435 | C4: 吴缃云 | D4: 84.00 | E4: 75.00 | F4: =D4*0.7+E4*0.3 -> 81.30 | G4: 288 | H4: =G4/5*0.6+F4*0.4 -> 67.08 | I4: 是 | J4: 环境工程 | K4: 单考
A5: 2 | B5: 114145311641399 | C5: 亓西子 | D5: 83.20 | E5: 70.80 | F5: =D5*0.7+E5*0.3 -> 79.48 | G5: 283 | H5: =G5/5*0.6+F5*0.4 -> 65.75 | I5: 是 | J5: 环境工程 | K5: 单考

Sheet 工程管理
A1: 化学工程与环境学院2025级非全日制专业学位硕士研究生复试成绩汇总暨拟录取名单统计表
A2: 序号 | B2: 考生编号 | C2: 姓名 | D2: 面试专业成绩 | E2: 面试英语成绩 | F2: 政治考核 | G2: 复试成绩 | H2: 初试成绩 | I2: 总成绩 | J2: 是否拟录取 | K2: 拟录取专业 | L2: 考生来源(推免/统考)
A3: 1 | B3: 114145165067660 | C3: 陈路路 | D3: 80.29 | E3: 76.60 | F3: 83.00 | G3: =D3*0.6+E3*0.3+F3*0.1 -> 79.45 | H3: 165 | I3: =G3*0.4+H3/3*0.6 -> 64.78 | J3: 是 | K3: 工程管理 | L3: 统考

Sheet 退役大学生计划
A1: 化学工程与环境学院2025级全日制硕士研究生复试成绩汇总暨拟录取名单统计表
A2: 序号 | B2: 考生编号 | C2: 姓名 | D2: 面试专业成绩 | E2: 面试英语成绩 | F2: 复试成绩 | G2: 初试成绩 | H2: 总成绩 | I2: 是否拟录取 | J2: 拟录取专业 | K2: 考生来源(推免/统考)
A3: 1 | B3: 114145122063802 | C3: 余佩雯 | D3: 82.33 | E3: 88.00 | F3: =D3*0.7+E3*0.3 -> 84.03 | G3: 311 | H3: =F3*0.4+G3/5*0.6 -> 70.93 | I3: 是 | J3: 化学工程与技术 | K3: 统考
A4: 2 | B4: 114145161607263 | C4: 焦程锐 | D4: 81.75 | E4: 72.50 | F4: =D4*0.7+E4*0.3 -> 78.98 | G4: 287 | H4: =F4*0.4+G4/5*0.6 -> 66.03 | I4: 是 | J4: 化学工程与技术 | K4: 统考
